[Event "Vastgota Open 2022"]
[Site "Skara stadshotell, Jarnvagsgatan 5, Skara, Sweden"]
[Date "2022.10.29"]
[Round "4.10"]
[White "Ranby, Hans"]
[Black "Nilsson, Patrik"]
[Result "0-1"]
[TimeControl "30 minutes + 10 seconds per move from move one."]
[WhiteFideId "1710311"]
[BlackFideId "1708171"]
[WhiteElo "1858"]
[BlackElo "2085"]

1. b4 {[%clk 00:30:17]} {[%emt 00:00:02]} d5 {[%clk 00:29:53]} {[%emt
00:00:27]} 2. Bb2 {[%clk 00:30:22]} {[%emt 00:00:04]} e6 {[%clk 00:29:56]}
{[%emt 00:00:08]} 3. Nf3 {[%clk 00:30:26]} {[%emt 00:00:06]} Nf6 {[%clk
00:30:01]} {[%emt 00:00:05]} 4. a3 {[%clk 00:30:29]} {[%emt 00:00:07]} Bd6
{[%clk 00:29:55]} {[%emt 00:00:16]} 5. e3 {[%clk 00:30:26]} {[%emt 00:00:13]}
Qe7 {[%clk 00:29:48]} {[%emt 00:00:17]} 6. c4 {[%clk 00:30:19]} {[%emt
00:00:17]} c6 {[%clk 00:29:49]} {[%emt 00:00:09]} 7. Nc3 {[%clk 00:30:03]}
{[%emt 00:00:26]} O-O {[%clk 00:29:38]} {[%emt 00:00:21]} 8. Be2 {[%clk
00:29:20]} {[%emt 00:00:53]} e5 {[%clk 00:28:53]} {[%emt 00:00:55]} 9. cxd5
{[%clk 00:29:01]} {[%emt 00:00:29]} cxd5 {[%clk 00:28:50]} {[%emt 00:00:13]} 10.
Nb5 {[%clk 00:27:53]} {[%emt 00:01:18]} Re8 {[%clk 00:25:39]} {[%emt 00:03:21]}
11. Rc1 {[%clk 00:24:29]} {[%emt 00:03:33]} Bd7 {[%clk 00:23:55]} {[%emt
00:01:55]} 12. Nxd6 {[%clk 00:22:48]} {[%emt 00:01:50]} Qxd6 {[%clk 00:24:04]}
{[%emt 00:00:02]} 13. O-O {[%clk 00:21:53]} {[%emt 00:01:05]} e4 {[%clk
00:23:12]} {[%emt 00:01:02]} 14. Nd4 {[%clk 00:21:36]} {[%emt 00:00:27]} a6
{[%clk 00:23:08]} {[%emt 00:00:14]} 15. Qb3 {[%clk 00:20:49]} {[%emt 00:00:56]}
Nc6 {[%clk 00:22:20]} {[%emt 00:00:58]} 16. Nxc6 {[%clk 00:19:55]} {[%emt
00:01:05]} Bxc6 {[%clk 00:22:21]} {[%emt 00:00:09]} 17. b5 {[%clk 00:17:38]}
{[%emt 00:02:27]} axb5 {[%clk 00:19:25]} {[%emt 00:03:06]} 18. Bxb5 {[%clk
00:17:24]} {[%emt 00:00:24]} Ng4 {[%clk 00:18:22]} {[%emt 00:01:13]} 19. g3
{[%clk 00:16:56]} {[%emt 00:00:38]} Qh6 {[%clk 00:17:35]} {[%emt 00:00:57]} 20.
h4 {[%clk 00:16:17]} {[%emt 00:00:48]} g5 {[%clk 00:17:33]} {[%emt 00:00:12]}
21. Kg2 {[%clk 00:14:58]} {[%emt 00:01:29]} Qh5 {[%clk 00:12:15]} {[%emt
00:05:29]} 22. Bxc6 {[%clk 00:10:31]} {[%emt 00:04:37]} bxc6 {[%clk 00:12:23]}
{[%emt 00:00:02]} 23. Rxc6 {[%clk 00:09:54]} {[%emt 00:00:47]} gxh4 {[%clk
00:11:10]} {[%emt 00:01:22]} 24. Rh1 {[%clk 00:07:52]} {[%emt 00:02:13]} Qf5
{[%clk 00:07:27]} {[%emt 00:03:53]} 25. f4 {[%clk 00:05:44]} {[%emt 00:02:18]}
exf3+ {[%clk 00:06:56]} {[%emt 00:00:41]} 26. Kf1 {[%clk 00:05:06]} {[%emt
00:00:47]} hxg3 {[%clk 00:06:52]} {[%emt 00:00:15]} 0-1

[Event "Vastgota Open 2022"]
[Site "Skara stadshotell, Jarnvagsgatan 5, Skara, Sweden"]
[Date "2022.10.29"]
[Round "5.1"]
[White "Golubka, Petro"]
[Black "Blomqvist, Erik"]
[Result "1/2-1/2"]
[TimeControl "30 minutes + 10 seconds per move from move one."]
[WhiteTitle "GM"]
[BlackTitle "GM"]
[WhiteFideId "14114224"]
[BlackFideId "1709437"]
[WhiteElo "2335"]
[BlackElo "2490"]

1. d4 {[%clk 00:25:18]} {[%emt 00:05:02]} d5 {[%clk 00:30:15]} {[%emt
00:00:05]} 2. Bg5 {[%clk 00:25:14]} {[%emt 00:00:13]} f6 {[%clk 00:30:19]}
{[%emt 00:00:07]} 3. Bh4 {[%clk 00:25:03]} {[%emt 00:00:21]} Nh6 {[%clk
00:30:21]} {[%emt 00:00:08]} 4. f3 {[%clk 00:24:54]} {[%emt 00:00:19]} c5
{[%clk 00:29:10]} {[%emt 00:01:22]} 5. e3 {[%clk 00:24:25]} {[%emt 00:00:38]}
Nc6 {[%clk 00:28:56]} {[%emt 00:00:24]} 6. Nc3 {[%clk 00:24:08]} {[%emt
00:00:28]} e6 {[%clk 00:27:56]} {[%emt 00:01:09]} 7. Bb5 {[%clk 00:23:17]}
{[%emt 00:01:01]} Qb6 {[%clk 00:27:00]} {[%emt 00:01:07]} 8. Nge2 {[%clk
00:23:20]} {[%emt 00:00:07]} cxd4 {[%clk 00:24:39]} {[%emt 00:02:30]} 9. exd4
{[%clk 00:22:45]} {[%emt 00:00:45]} Nf5 {[%clk 00:24:06]} {[%emt 00:00:44]} 10.
Bf2 {[%clk 00:22:47]} {[%emt 00:00:08]} Nd6 {[%clk 00:23:37]} {[%emt 00:00:38]}
11. a4 {[%clk 00:22:28]} {[%emt 00:00:30]} Bd7 {[%clk 00:22:33]} {[%emt
00:01:14]} 12. Nf4 {[%clk 00:21:53]} {[%emt 00:00:45]} Nxb5 {[%clk 00:21:49]}
{[%emt 00:00:54]} 13. axb5 {[%clk 00:21:54]} {[%emt 00:00:08]} Nb4 {[%clk
00:21:41]} {[%emt 00:00:18]} 14. Qe2 {[%clk 00:21:00]} {[%emt 00:01:04]} Kf7
{[%clk 00:21:50]} {[%emt 00:00:02]} 15. O-O {[%clk 00:19:42]} {[%emt 00:01:27]}
1/2-1/2

[Event "Vastgota Open 2022"]
[Site "Skara stadshotell, Jarnvagsgatan 5, Skara, Sweden"]
[Date "2022.10.29"]
[Round "5.2"]
[White "Thyberg, Andre"]
[Black "Eklund, Lars-Goran"]
[Result "1/2-1/2"]
[TimeControl "30 minutes + 10 seconds per move from move one."]
[BlackTitle "FM"]
[WhiteFideId "1764764"]
[BlackFideId "1701010"]
[WhiteElo "1632"]
[BlackElo "2176"]

1. e4 {[%clk 00:30:08]} {[%emt 00:00:11]} Nc6 {[%clk 00:30:01]} {[%emt
00:00:22]} 2. d4 {[%clk 00:30:09]} {[%emt 00:00:07]} d5 {[%clk 00:30:07]}
{[%emt 00:00:03]} 3. exd5 {[%clk 00:30:13]} {[%emt 00:00:06]} Qxd5 {[%clk
00:30:15]} {[%emt 00:00:03]} 4. Nf3 {[%clk 00:30:14]} {[%emt 00:00:09]} e5
{[%clk 00:30:12]} {[%emt 00:00:12]} 5. Nc3 {[%clk 00:29:35]} {[%emt 00:00:49]}
Bb4 {[%clk 00:30:18]} {[%emt 00:00:04]} 6. Bd2 {[%clk 00:29:42]} {[%emt
00:00:04]} Bxc3 {[%clk 00:30:25]} {[%emt 00:00:02]} 7. Bxc3 {[%clk 00:29:50]}
{[%emt 00:00:03]} e4 {[%clk 00:30:33]} {[%emt 00:00:02]} 8. Ne5 {[%clk
00:29:15]} {[%emt 00:00:45]} Nxe5 {[%clk 00:30:26]} {[%emt 00:00:16]} 9. dxe5
{[%clk 00:29:08]} {[%emt 00:00:18]} Ne7 {[%clk 00:30:25]} {[%emt 00:00:10]} 10.
b3 {[%clk 00:27:03]} {[%emt 00:02:15]} Be6 {[%clk 00:27:36]} {[%emt 00:03:01]}
11. Be2 {[%clk 00:24:56]} {[%emt 00:02:15]} Qc5 {[%clk 00:24:37]} {[%emt
00:03:09]} 12. Qd4 {[%clk 00:22:44]} {[%emt 00:02:22]} Qc6 {[%clk 00:23:42]}
{[%emt 00:01:05]} 13. O-O {[%clk 00:20:19]} {[%emt 00:02:35]} Rd8 {[%clk
00:22:35]} {[%emt 00:01:17]} 14. Qa4 {[%clk 00:16:33]} {[%emt 00:03:56]} Qxa4
{[%clk 00:21:41]} {[%emt 00:01:04]} 15. bxa4 {[%clk 00:16:41]} {[%emt
00:00:02]} Nd5 {[%clk 00:20:51]} {[%emt 00:01:01]} 16. Bd2 {[%clk 00:15:59]}
{[%emt 00:00:52]} Nb6 {[%clk 00:19:07]} {[%emt 00:01:54]} 17. Be3 {[%clk
00:15:41]} {[%emt 00:00:25]} Nxa4 {[%clk 00:18:05]} {[%emt 00:01:15]} 18. Bb5+
{[%clk 00:15:31]} {[%emt 00:00:19]} Bd7 {[%clk 00:18:10]} {[%emt 00:00:05]} 19.
Bxa4 {[%clk 00:15:35]} {[%emt 00:00:06]} Bxa4 {[%clk 00:18:17]} {[%emt
00:00:04]} 20. Bg5 {[%clk 00:13:58]} {[%emt 00:01:47]} Rd7 {[%clk 00:15:42]}
{[%emt 00:02:45]} 21. Rfd1 {[%clk 00:13:04]} {[%emt 00:01:04]} h6 {[%clk
00:12:29]} {[%emt 00:03:23]} 22. Be3 {[%clk 00:11:02]} {[%emt 00:02:11]} Ke7
{[%clk 00:10:18]} {[%emt 00:02:21]} 23. Rd4 {[%clk 00:09:33]} {[%emt 00:01:40]}
Rxd4 {[%clk 00:05:42]} {[%emt 00:04:46]} 24. Bxd4 {[%clk 00:09:35]} {[%emt
00:00:07]} Rd8 {[%clk 00:05:10]} {[%emt 00:00:42]} 25. c3 {[%clk 00:08:27]}
{[%emt 00:01:18]} b6 {[%clk 00:05:05]} {[%emt 00:00:16]} 26. Be3 {[%clk
00:06:50]} {[%emt 00:01:47]} Ke6 {[%clk 00:04:55]} {[%emt 00:00:20]} 27. f4
{[%clk 00:06:56]} {[%emt 00:00:04]} exf3 {[%clk 00:04:33]} {[%emt 00:00:32]} 28.
gxf3 {[%clk 00:06:56]} {[%emt 00:00:10]} Rd3 {[%clk 00:04:09]} {[%emt
00:00:34]} 29. Kf2 {[%clk 00:05:44]} {[%emt 00:01:22]} Rxc3 {[%clk 00:04:15]}
{[%emt 00:00:04]} 30. Rc1 {[%clk 00:05:43]} {[%emt 00:00:11]} Rxc1 {[%clk
00:03:11]} {[%emt 00:01:15]} 31. Bxc1 {[%clk 00:05:49]} {[%emt 00:00:04]} h5
{[%clk 00:02:18]} {[%emt 00:01:02]} 32. Ke3 {[%clk 00:05:30]} {[%emt 00:00:29]}
c5 {[%clk 00:01:46]} {[%emt 00:00:43]} 33. h4 {[%clk 00:05:02]} {[%emt
00:00:37]} Kd5 {[%clk 00:01:45]} {[%emt 00:00:12]} 34. f4 {[%clk 00:04:54]}
{[%emt 00:00:18]} Bc2 {[%clk 00:01:39]} {[%emt 00:00:15]} 35. Kd2 {[%clk
00:04:04]} {[%emt 00:01:00]} Bb1 {[%clk 00:01:48]} {[%emt 00:00:02]} 36. a3
{[%clk 00:04:05]} {[%emt 00:00:09]} Kc4 {[%clk 00:01:57]} {[%emt 00:00:01]} 37.
Bb2 {[%clk 00:02:05]} {[%emt 00:02:09]} g6 {[%clk 00:02:05]} {[%emt 00:00:02]}
38. Kc1 {[%clk 00:01:27]} {[%emt 00:00:48]} Bf5 {[%clk 00:02:13]} {[%emt
00:00:02]} 39. e6 {[%clk 00:01:35]} {[%emt 00:00:02]} fxe6 {[%clk 00:02:11]}
{[%emt 00:00:12]} 40. Be5 {[%clk 00:01:44]} b5 {[%clk 00:01:20]} {[%emt
00:01:01]} 41. Kb2 {[%clk 00:01:46]} {[%emt 00:00:08]} a5 {[%clk 00:01:28]}
{[%emt 00:00:02]} 42. Bd6 {[%clk 00:01:37]} {[%emt 00:00:18]} Kd5 {[%clk
00:01:13]} {[%emt 00:00:25]} 43. Bc7 {[%clk 00:01:44]} {[%emt 00:00:04]} Ke4
{[%clk 00:00:38]} {[%emt 00:00:45]} 44. Kc3 {[%clk 00:01:28]} {[%emt 00:00:26]}
b4+ {[%clk 00:00:24]} {[%emt 00:00:24]} 45. axb4 {[%clk 00:01:35]} {[%emt
00:00:02]} cxb4+ {[%clk 00:00:21]} {[%emt 00:00:13]} 46. Kc4 {[%clk 00:01:16]}
{[%emt 00:00:29]} Kf3 {[%clk 00:00:28]} {[%emt 00:00:04]} 47. Bxa5 {[%clk
00:01:21]} {[%emt 00:00:04]} Kxf4 {[%clk 00:00:28]} {[%emt 00:00:10]} 48. Bxb4
{[%clk 00:01:26]} {[%emt 00:00:05]} e5 {[%clk 00:00:19]} {[%emt 00:00:19]} 49.
Be7 {[%clk 00:00:59]} {[%emt 00:00:38]} Kf3 {[%clk 00:00:24]} {[%emt 00:00:03]}
50. Bg5 {[%clk 00:00:54]} {[%emt 00:00:15]} Be6+ {[%clk 00:00:16]} {[%emt
00:00:19]} 51. Kd3 {[%clk 00:00:58]} {[%emt 00:00:06]} Bf5+ {[%clk 00:00:13]}
{[%emt 00:00:12]} 52. Kc4 {[%clk 00:01:07]} {[%emt 00:00:02]} Ke4 {[%clk
00:00:19]} {[%emt 00:00:04]} 53. Bf6 {[%clk 00:01:10]} {[%emt 00:00:06]} Be6+
{[%clk 00:00:25]} {[%emt 00:00:04]} 54. Kc3 {[%clk 00:01:09]} {[%emt 00:00:12]}
Kf5 {[%clk 00:00:32]} {[%emt 00:00:03]} 55. Bg5 {[%clk 00:01:17]} Ke4 {[%clk
00:00:37]} {[%emt 00:00:05]} 56. Bf6 {[%clk 00:01:10]} {[%emt 00:00:17]} Bc8
{[%clk 00:00:43]} {[%emt 00:00:03]} 57. Kd2 {[%clk 00:01:14]} {[%emt 00:00:07]}
Ba6 {[%clk 00:00:52]} {[%emt 00:00:01]} 58. Ke1 {[%clk 00:01:22]} Kf4 {[%clk
00:00:59]} {[%emt 00:00:03]} 59. Kf2 {[%clk 00:01:31]} {[%emt 00:00:02]} Kg4
{[%clk 00:01:02]} {[%emt 00:00:07]} 60. Ke3 {[%clk 00:01:36]} {[%emt 00:00:04]}
Bb7 {[%clk 00:01:09]} {[%emt 00:00:03]} 61. Bg5 {[%clk 00:01:21]} {[%emt
00:00:26]} Kf5 {[%clk 00:01:17]} {[%emt 00:00:02]} 62. Be7 {[%clk 00:01:28]}
{[%emt 00:00:02]} Ke6 {[%clk 00:01:25]} {[%emt 00:00:02]} 63. Bg5 {[%clk
00:01:37]} Bc6 {[%clk 00:01:35]} 64. Bd8 {[%clk 00:01:46]} Bb7 {[%clk
00:01:44]} {[%emt 00:00:01]} 1/2-1/2

[Event "Vastgota Open 2022"]
[Site "Skara stadshotell, Jarnvagsgatan 5, Skara, Sweden"]
[Date "2022.10.29"]
[Round "5.3"]
[White "Cramling, Pia"]
[Black "Ronneland, Daniel"]
[Result "1-0"]
[TimeControl "30 minutes + 10 seconds per move from move one."]
[WhiteTitle "GM"]
[WhiteFideId "1700030"]
[BlackFideId "1702130"]
[WhiteElo "2421"]
[BlackElo "2206"]

1. d4 {[%clk 00:25:10]} {[%emt 00:05:09]} Nf6 {[%clk 00:30:11]} {[%emt
00:00:09]} 2. c4 {[%clk 00:25:11]} {[%emt 00:00:09]} c5 {[%clk 00:30:08]}
{[%emt 00:00:12]} 3. d5 {[%clk 00:25:19]} {[%emt 00:00:02]} b5 {[%clk
00:30:10]} {[%emt 00:00:08]} 4. Nf3 {[%clk 00:25:10]} {[%emt 00:00:19]} d6
{[%clk 00:28:54]} {[%emt 00:01:27]} 5. cxb5 {[%clk 00:24:33]} {[%emt 00:00:48]}
a6 {[%clk 00:28:54]} {[%emt 00:00:09]} 6. e3 {[%clk 00:24:26]} {[%emt
00:00:17]} g6 {[%clk 00:28:41]} {[%emt 00:00:23]} 7. Nc3 {[%clk 00:24:35]} Bg7
{[%clk 00:28:26]} {[%emt 00:00:26]} 8. a4 {[%clk 00:23:56]} {[%emt 00:00:49]}
O-O {[%clk 00:27:56]} {[%emt 00:00:39]} 9. Rb1 {[%clk 00:19:57]} {[%emt
00:04:10]} Nbd7 {[%clk 00:20:13]} {[%emt 00:07:53]} 10. e4 {[%clk 00:19:19]}
{[%emt 00:00:48]} axb5 {[%clk 00:19:22]} {[%emt 00:01:02]} 11. Bxb5 {[%clk
00:19:14]} {[%emt 00:00:14]} Ba6 {[%clk 00:19:10]} {[%emt 00:00:20]} 12. O-O
{[%clk 00:18:57]} {[%emt 00:00:28]} Bxb5 {[%clk 00:17:28]} {[%emt 00:01:53]} 13.
axb5 {[%clk 00:19:06]} {[%emt 00:00:02]} Qa5 {[%clk 00:17:23]} {[%emt
00:00:13]} 14. Bd2 {[%clk 00:16:38]} {[%emt 00:02:38]} Ng4 {[%clk 00:16:49]}
{[%emt 00:00:45]} 15. Qe2 {[%clk 00:16:15]} {[%emt 00:00:32]} Nge5 {[%clk
00:14:58]} {[%emt 00:02:01]} 16. Nxe5 {[%clk 00:15:52]} {[%emt 00:00:33]} Bxe5
{[%clk 00:13:01]} {[%emt 00:02:07]} 17. Rfc1 {[%clk 00:14:35]} {[%emt
00:01:27]} Rfb8 {[%clk 00:12:19]} {[%emt 00:00:53]} 18. g3 {[%clk 00:13:42]}
{[%emt 00:01:03]} Qb4 {[%clk 00:11:46]} {[%emt 00:00:43]} 19. Kg2 {[%clk
00:13:05]} {[%emt 00:00:46]} c4 {[%clk 00:06:15]} {[%emt 00:05:42]} 20. Nd1
{[%clk 00:11:54]} {[%emt 00:01:21]} Qxb5 {[%clk 00:06:24]} {[%emt 00:00:02]} 21.
Qxc4 {[%clk 00:11:57]} {[%emt 00:00:07]} Qxc4 {[%clk 00:06:12]} {[%emt
00:00:22]} 22. Rxc4 {[%clk 00:12:05]} {[%emt 00:00:02]} Ra2 {[%clk 00:06:03]}
{[%emt 00:00:18]} 23. Be3 {[%clk 00:09:47]} {[%emt 00:02:28]} Rb3 {[%clk
00:01:58]} {[%emt 00:04:14]} 24. Rc7 {[%clk 00:07:23]} {[%emt 00:02:35]} Nf6
{[%clk 00:01:55]} {[%emt 00:00:11]} 25. Bh6 {[%clk 00:06:42]} {[%emt 00:00:53]}
Ra8 {[%clk 00:01:22]} {[%emt 00:00:43]} 26. Rbc1 {[%clk 00:06:36]} {[%emt
00:00:16]} Rbb8 {[%clk 00:01:03]} {[%emt 00:00:29]} 27. Rxe7 {[%clk 00:04:17]}
{[%emt 00:02:28]} Ng4 {[%clk 00:00:26]} {[%emt 00:00:47]} 28. Bd2 {[%clk
00:03:56]} {[%emt 00:00:30]} Bxb2 {[%clk 00:00:19]} {[%emt 00:00:19]} 29. Rc2
{[%clk 00:03:26]} {[%emt 00:00:40]} Bd4 {[%clk 00:00:24]} {[%emt 00:00:05]} 30.
h3 {[%clk 00:03:14]} {[%emt 00:00:22]} Rb1 {[%clk 00:00:31]} {[%emt 00:00:02]}
31. hxg4 {[%clk 00:03:06]} {[%emt 00:00:19]} Rxd1 {[%clk 00:00:38]} {[%emt
00:00:02]} 32. Bh6 {[%clk 00:02:50]} {[%emt 00:00:26]} Bg7 {[%clk 00:00:17]}
{[%emt 00:00:31]} 33. Bxg7 {[%clk 00:02:38]} {[%emt 00:00:22]} Kxg7 {[%clk
00:00:26]} {[%emt 00:00:01]} 34. Rcc7 {[%clk 00:02:35]} {[%emt 00:00:13]} Rf8
{[%clk 00:00:34]} {[%emt 00:00:02]} 35. g5 {[%clk 00:02:06]} {[%emt 00:00:39]}
Rb1 {[%clk 00:00:25]} {[%emt 00:00:20]} 36. Red7 {[%clk 00:01:59]} {[%emt
00:00:16]} Rb6 {[%clk 00:00:22]} {[%emt 00:00:13]} 37. Kf3 {[%clk 00:01:49]}
{[%emt 00:00:19]} h6 {[%clk 00:00:22]} {[%emt 00:00:11]} 38. gxh6+ {[%clk
00:01:54]} {[%emt 00:00:05]} Kxh6 {[%clk 00:00:30]} {[%emt 00:00:01]} 39. Rxf7
{[%clk 00:02:01]} {[%emt 00:00:04]} Re8 {[%clk 00:00:21]} {[%emt 00:00:20]} 40.
Kf4 {[%clk 00:01:45]} {[%emt 00:00:24]} g5+ {[%clk 00:00:19]} {[%emt 00:00:13]}
41. Kf5 {[%clk 00:01:44]} {[%emt 00:00:10]} Re5+ {[%clk 00:00:22]} {[%emt
00:00:08]} 42. Kf6 {[%clk 00:01:46]} {[%emt 00:00:08]} Kh5 {[%clk 00:00:31]}
{[%emt 00:00:02]} 43. f3 {[%clk 00:01:54]} {[%emt 00:00:02]} 1-0

[Event "Vastgota Open 2022"]
[Site "Skara stadshotell, Jarnvagsgatan 5, Skara, Sweden"]
[Date "2022.10.29"]
[Round "5.4"]
[White "Johansson, Ulf"]
[Black "Blauhut, Holger"]
[Result "1-0"]
[TimeControl "30 minutes + 10 seconds per move from move one."]
[BlackTitle "CM"]
[WhiteFideId "1701380"]
[BlackFideId "24665177"]
[WhiteElo "2183"]
[BlackElo "2037"]

1. Nf3 {[%clk 00:30:11]} {[%emt 00:00:08]} d5 {[%clk 00:30:14]} {[%emt
00:00:06]} 2. g3 {[%clk 00:30:14]} {[%emt 00:00:08]} Nf6 {[%clk 00:30:16]}
{[%emt 00:00:09]} 3. Bg2 {[%clk 00:30:22]} e6 {[%clk 00:30:12]} {[%emt
00:00:13]} 4. O-O {[%clk 00:30:21]} {[%emt 00:00:11]} Be7 {[%clk 00:30:09]}
{[%emt 00:00:14]} 5. d4 {[%clk 00:29:58]} {[%emt 00:00:32]} c5 {[%clk
00:29:01]} {[%emt 00:01:18]} 6. c4 {[%clk 00:29:33]} {[%emt 00:00:35]} Nc6
{[%clk 00:28:50]} {[%emt 00:00:22]} 7. Nc3 {[%clk 00:29:10]} {[%emt 00:00:33]}
dxc4 {[%clk 00:27:09]} {[%emt 00:01:51]} 8. Qa4 {[%clk 00:25:43]} {[%emt
00:03:37]} O-O {[%clk 00:25:45]} {[%emt 00:01:35]} 9. dxc5 {[%clk 00:25:42]}
{[%emt 00:00:11]} Bxc5 {[%clk 00:25:33]} {[%emt 00:00:22]} 10. Qxc4 {[%clk
00:25:49]} {[%emt 00:00:03]} Be7 {[%clk 00:23:08]} {[%emt 00:02:34]} 11. Bf4
{[%clk 00:23:20]} {[%emt 00:02:39]} Qb6 {[%clk 00:21:48]} {[%emt 00:01:31]} 12.
Qb5 {[%clk 00:21:58]} {[%emt 00:01:32]} Qxb5 {[%clk 00:20:24]} {[%emt
00:01:34]} 13. Nxb5 {[%clk 00:22:06]} {[%emt 00:00:02]} Nd5 {[%clk 00:20:27]}
{[%emt 00:00:07]} 14. Bd6 {[%clk 00:21:49]} {[%emt 00:00:26]} Rd8 {[%clk
00:14:44]} {[%emt 00:05:53]} 15. Bxe7 {[%clk 00:21:48]} {[%emt 00:00:11]} Ncxe7
{[%clk 00:14:25]} {[%emt 00:00:29]} 16. Rfd1 {[%clk 00:21:14]} {[%emt
00:00:44]} Bd7 {[%clk 00:14:07]} {[%emt 00:00:29]} 17. Nbd4 {[%clk 00:18:15]}
{[%emt 00:03:09]} Rac8 {[%clk 00:11:29]} {[%emt 00:02:48]} 18. Ne5 {[%clk
00:17:06]} {[%emt 00:01:19]} Be8 {[%clk 00:11:02]} {[%emt 00:00:36]} 19. Rd2
{[%clk 00:14:24]} {[%emt 00:02:52]} Rd6 {[%clk 00:08:37]} {[%emt 00:02:34]} 20.
Rad1 {[%clk 00:12:45]} {[%emt 00:01:50]} Rb6 {[%clk 00:08:41]} {[%emt
00:00:06]} 21. e4 {[%clk 00:12:04]} {[%emt 00:00:51]} Nf6 {[%clk 00:08:39]}
{[%emt 00:00:12]} 22. b3 {[%clk 00:11:59]} {[%emt 00:00:15]} g6 {[%clk
00:07:07]} {[%emt 00:01:42]} 23. Nc4 {[%clk 00:11:15]} {[%emt 00:00:54]} Ra6
{[%clk 00:07:08]} {[%emt 00:00:08]} 24. e5 {[%clk 00:11:14]} {[%emt 00:00:12]}
Nfd5 {[%clk 00:07:11]} {[%emt 00:00:07]} 25. Nd6 {[%clk 00:11:00]} {[%emt
00:00:24]} Rb8 {[%clk 00:07:05]} {[%emt 00:00:16]} 26. Bf1 {[%clk 00:07:46]}
{[%emt 00:03:24]} Ra5 {[%clk 00:06:24]} {[%emt 00:00:53]} 27. Rc1 {[%clk
00:07:26]} {[%emt 00:00:29]} Nc6 {[%clk 00:05:35]} {[%emt 00:00:59]} 28. Nxc6
{[%clk 00:06:10]} {[%emt 00:01:26]} Bxc6 {[%clk 00:05:38]} {[%emt 00:00:07]} 29.
Nc4 {[%clk 00:04:45]} {[%emt 00:01:35]} Rc5 {[%clk 00:05:30]} {[%emt 00:00:18]}
30. a3 {[%emt 00:00:34]} Bd7 {[%clk 00:04:26]} {[%emt 00:01:14]} 31. Rcd1
{[%clk 00:03:47]} {[%emt 00:00:44]} Bb5 {[%clk 00:01:55]} {[%emt 00:02:41]} 32.
Nd6 {[%clk 00:03:47]} {[%emt 00:00:10]} Bxf1 {[%clk 00:02:02]} {[%emt
00:00:03]} 33. Kxf1 {[%clk 00:03:41]} {[%emt 00:00:16]} Ne7 {[%clk 00:01:35]}
{[%emt 00:00:36]} 34. Ne4 {[%clk 00:03:41]} {[%emt 00:00:11]} Rd5 {[%clk
00:01:27]} {[%emt 00:00:18]} 35. Nf6+ {[%emt 00:00:02]} 1-0

[Event "Vastgota Open 2022"]
[Site "Skara stadshotell, Jarnvagsgatan 5, Skara, Sweden"]
[Date "2022.10.29"]
[Round "5.5"]
[White "Lind, Jan-Olov"]
[Black "Bengtsson, Jessica"]
[Result "1/2-1/2"]
[TimeControl "30 minutes + 10 seconds per move from move one."]
[BlackTitle "WFM"]
[WhiteFideId "1701193"]
[BlackFideId "1711083"]
[WhiteElo "2123"]
[BlackElo "2003"]

1. e4 {[%clk 00:30:15]} {[%emt 00:00:03]} e5 {[%clk 00:30:11]} {[%emt
00:00:09]} 2. Nf3 {[%clk 00:30:23]} {[%emt 00:00:03]} Nc6 {[%clk 00:30:15]}
{[%emt 00:00:06]} 3. d4 {[%clk 00:30:30]} {[%emt 00:00:03]} exd4 {[%clk
00:30:20]} {[%emt 00:00:05]} 4. c3 {[%clk 00:30:38]} {[%emt 00:00:03]} d5
{[%clk 00:27:19]} {[%emt 00:03:10]} 5. exd5 {[%clk 00:30:45]} {[%emt 00:00:04]}
Qxd5 {[%clk 00:27:22]} {[%emt 00:00:06]} 6. cxd4 {[%clk 00:30:52]} {[%emt
00:00:03]} Bg4 {[%clk 00:26:50]} {[%emt 00:00:42]} 7. Be2 {[%clk 00:30:59]}
{[%emt 00:00:02]} Bb4+ {[%clk 00:25:57]} {[%emt 00:01:03]} 8. Nc3 {[%clk
00:31:07]} {[%emt 00:00:03]} Bxf3 {[%clk 00:25:01]} {[%emt 00:01:06]} 9. Bxf3
{[%clk 00:31:13]} {[%emt 00:00:05]} Qc4 {[%clk 00:24:59]} {[%emt 00:00:11]} 10.
Qb3 {[%clk 00:31:19]} {[%emt 00:00:04]} Qxb3 {[%clk 00:22:39]} {[%emt
00:02:31]} 11. axb3 {[%clk 00:31:26]} {[%emt 00:00:02]} Nge7 {[%clk 00:16:08]}
{[%emt 00:06:40]} 12. Be3 {[%clk 00:31:02]} {[%emt 00:00:34]} O-O {[%clk
00:15:37]} {[%emt 00:00:42]} 13. O-O {[%clk 00:30:37]} {[%emt 00:00:34]} a6
{[%clk 00:15:19]} {[%emt 00:00:29]} 14. Bxc6 {[%clk 00:24:44]} {[%emt
00:06:04]} Nxc6 {[%clk 00:14:51]} {[%emt 00:00:37]} 15. Nd5 {[%clk 00:22:31]}
{[%emt 00:02:23]} Bd6 {[%clk 00:14:43]} {[%emt 00:00:17]} 16. Rfc1 {[%clk
00:22:11]} {[%emt 00:00:31]} Rac8 {[%clk 00:13:01]} {[%emt 00:01:52]} 17. g3
{[%clk 00:17:44]} {[%emt 00:04:37]} Rfd8 {[%clk 00:12:33]} {[%emt 00:00:39]} 18.
Nc3 {[%clk 00:13:06]} {[%emt 00:04:48]} Rd7 {[%clk 00:09:49]} {[%emt 00:02:53]}
19. Ne4 {[%clk 00:10:56]} {[%emt 00:02:20]} Rcd8 {[%clk 00:08:18]} {[%emt
00:01:41]} 20. Kg2 {[%clk 00:07:45]} {[%emt 00:03:21]} h6 {[%clk 00:07:43]}
{[%emt 00:00:45]} 21. Nxd6 {[%clk 00:05:41]} {[%emt 00:02:14]} Rxd6 {[%clk
00:07:44]} {[%emt 00:00:08]} 22. Rc4 {[%clk 00:05:18]} {[%emt 00:00:34]} Rd5
{[%clk 00:05:48]} {[%emt 00:02:06]} 23. Rac1 {[%clk 00:05:06]} {[%emt
00:00:23]} R8d7 {[%clk 00:05:38]} {[%emt 00:00:20]} 24. Rc5 {[%clk 00:04:38]}
{[%emt 00:00:38]} Nxd4 {[%clk 00:03:56]} {[%emt 00:01:51]} 25. Bxd4 {[%clk
00:04:42]} {[%emt 00:00:06]} Rxd4 {[%clk 00:04:04]} {[%emt 00:00:03]} 26. Rxc7
{[%clk 00:04:50]} {[%emt 00:00:02]} Rxc7 {[%clk 00:03:46]} {[%emt 00:00:28]} 27.
Rxc7 {[%clk 00:04:59]} {[%emt 00:00:01]} Rb4 {[%clk 00:03:50]} {[%emt
00:00:05]} 28. Rc3 {[%clk 00:05:03]} {[%emt 00:00:05]} 1/2-1/2